[Event "Titled Tuesday Blitz January 31 Early 2023"]
[White "Bochnicka, Vladimir"]
[Black "Yelisieiev, Yevhenii"]
[WhiteFideId "14943450"]
[BlackFideId "14139642"]
[WhiteElo "2327"]
[BlackElo "2418"]
[Result "0-1"]
[Round "10"]
[TimeControl "180+2"]
[Date "2023.01.31"]
[WhiteClock "0:00:04"]
[BlackClock "0:01:13"]

1. e4 {[%clk 0:03:00]}  d6 {[%clk 0:03:00]} 2. d4 {[%clk 0:03:00]}  Nf6 {[%clk 0:03:01]} 3. Nc3 {[%clk 0:02:55]}  e5 {[%clk 0:03:02]} 4. Nge2 {[%clk 0:02:54]}  c6 {[%clk 0:03:01]} 5. h3 {[%clk 0:02:48]}  b5 {[%clk 0:02:56]} 6. a3 {[%clk 0:02:48]}  a5 {[%clk 0:02:56]} 7. g4 {[%clk 0:02:44]}  Bb7 {[%clk 0:02:54]} 8. Bg2 {[%clk 0:02:39]}  b4 {[%clk 0:02:53]} 9. axb4 {[%clk 0:02:33]}  axb4 {[%clk 0:02:54]} 10. Rxa8 {[%clk 0:02:34]}  Bxa8 {[%clk 0:02:55]} 11. Nb1 {[%clk 0:02:34]}  exd4 {[%clk 0:02:51]} 12. g5 {[%clk 0:02:05]}  Nfd7 {[%clk 0:02:51]} 13. Nxd4 {[%clk 0:02:06]}  Be7 {[%clk 0:02:41]} 14. f4 {[%clk 0:02:01]}  O-O {[%clk 0:02:37]} 15. O-O {[%clk 0:01:59]}  g6 {[%clk 0:02:32]} 16. Be3 {[%clk 0:01:49]}  c5 {[%clk 0:02:32]} 17. Ne2 {[%clk 0:01:49]}  Nb6 {[%clk 0:02:28]} 18. Nd2 {[%clk 0:01:29]}  d5 {[%clk 0:02:28]} 19. Kh2 {[%clk 0:01:16]}  d4 {[%clk 0:02:20]} 20. Bf2 {[%clk 0:01:13]}  Qc7 {[%clk 0:02:15]} 21. Bg3 {[%clk 0:01:13]}  Rd8 {[%clk 0:02:10]} 22. f5 {[%clk 0:01:13]}  Bd6 {[%clk 0:02:10]} 23. Qe1 {[%clk 0:01:08]}  N8d7 {[%clk 0:02:02]} 24. Qf2 {[%clk 0:01:02]}  Bxg3+ {[%clk 0:01:58]} 25. Nxg3 {[%clk 0:01:02]}  Ne5 {[%clk 0:01:59]} 26. Nf3 {[%clk 0:00:47]}  Nbc4 {[%clk 0:01:59]} 27. fxg6 {[%clk 0:00:39]}  hxg6 {[%clk 0:01:53]} 28. b3 {[%clk 0:00:38]}  Ne3 {[%clk 0:01:41]} 29. Nxe5 {[%clk 0:00:38]}  Nxf1+ {[%clk 0:01:41]} 30. Bxf1 {[%clk 0:00:28]}  Qxe5 {[%clk 0:01:40]} 31. Bc4 {[%clk 0:00:29]}  Rd7 {[%clk 0:01:37]} 32. h4 {[%clk 0:00:20]}  Bxe4 {[%clk 0:01:27]} 33. Qe2 {[%clk 0:00:19]}  Re7 {[%clk 0:01:27]} 34. Qg4 {[%clk 0:00:13]}  Bf5 {[%clk 0:01:17]} 35. Qf3 {[%clk 0:00:09]}  Qe3 {[%clk 0:01:14]} 36. Qa8+ {[%clk 0:00:05]}  Re8 {[%clk 0:01:14]} 37. Qb7 {[%clk 0:00:05]}  Qf2+ {[%clk 0:01:14]} 38. Qg2 {[%clk 0:00:03]}  Qxg2+ {[%clk 0:01:13]} 39. Kxg2 {[%clk 0:00:04]}  Bxc2 {[%clk 0:01:13]} 0-1


[Site "https://www.chess.com"]

[Event "Titled Tuesday Blitz January 31 Early 2023"]
[White "Ordekalog"]
[Black "Khamdamova, Afruza"]
[BlackFideId "14210444"]
[WhiteElo "2589"]
[BlackElo "2162"]
[Result "0-1"]
[Round "10"]
[TimeControl "180+2"]
[Date "2023.01.31"]
[WhiteClock "0:00:02"]
[BlackClock "0:00:12"]

1. d4 {[%clk 0:03:00]}  Nf6 {[%clk 0:02:59]} 2. c4 {[%clk 0:03:00]}  e6 {[%clk 0:02:58]} 3. Nc3 {[%clk 0:02:59]}  d5 {[%clk 0:02:58]} 4. cxd5 {[%clk 0:02:58]}  exd5 {[%clk 0:02:58]} 5. Bg5 {[%clk 0:02:58]}  Be7 {[%clk 0:02:58]} 6. e3 {[%clk 0:02:57]}  O-O {[%clk 0:02:58]} 7. Bd3 {[%clk 0:02:57]}  c6 {[%clk 0:02:55]} 8. Nge2 {[%clk 0:02:56]}  Nbd7 {[%clk 0:02:55]} 9. Qc2 {[%clk 0:02:55]}  Re8 {[%clk 0:02:55]} 10. O-O {[%clk 0:02:55]}  Nf8 {[%clk 0:02:53]} 11. f3 {[%clk 0:02:47]}  Nh5 {[%clk 0:02:47]} 12. Bxe7 {[%clk 0:02:44]}  Qxe7 {[%clk 0:02:47]} 13. e4 {[%clk 0:02:44]}  dxe4 {[%clk 0:02:34]} 14. fxe4 {[%clk 0:02:43]}  Ng6 {[%clk 0:02:29]} 15. e5 {[%clk 0:02:33]}  Qg5 {[%clk 0:02:22]} 16. Ne4 {[%clk 0:02:11]}  Qe3+ {[%clk 0:02:19]} 17. Kh1 {[%clk 0:02:11]}  Be6 {[%clk 0:02:18]} 18. Rf3 {[%clk 0:02:10]}  Qh6 {[%clk 0:02:14]} 19. Raf1 {[%clk 0:02:07]}  Re7 {[%clk 0:02:07]} 20. Nd6 {[%clk 0:02:05]}  Rf8 {[%clk 0:02:00]} 21. Bxg6 {[%clk 0:01:52]}  hxg6 {[%clk 0:02:00]} 22. Nc3 {[%clk 0:01:42]}  Bg4 {[%clk 0:01:46]} 23. Rd3 {[%clk 0:01:32]}  f6 {[%clk 0:01:14]} 24. h3 {[%clk 0:01:06]}  Be6 {[%clk 0:00:47]} 25. Kg1 {[%clk 0:01:04]}  fxe5 {[%clk 0:00:39]} 26. Rxf8+ {[%clk 0:01:03]}  Kxf8 {[%clk 0:00:39]} 27. dxe5 {[%clk 0:01:02]}  Kg8 {[%clk 0:00:38]} 28. Qd2 {[%clk 0:00:48]}  Nf4 {[%clk 0:00:31]} 29. Rd4 {[%clk 0:00:44]}  Nd5 {[%clk 0:00:23]} 30. Nxd5 {[%clk 0:00:41]}  Bxd5 {[%clk 0:00:23]} 31. Rxd5 {[%clk 0:00:41]}  cxd5 {[%clk 0:00:22]} 32. Qxd5+ {[%clk 0:00:42]}  Kh7 {[%clk 0:00:22]} 33. Nc4 {[%clk 0:00:25]}  Qc1+ {[%clk 0:00:21]} 34. Kh2 {[%clk 0:00:25]}  Qf4+ {[%clk 0:00:21]} 35. Kg1 {[%clk 0:00:25]}  Rc7 {[%clk 0:00:21]} 36. b3 {[%clk 0:00:24]}  a6 {[%clk 0:00:20]} 37. Qd6 {[%clk 0:00:21]}  Rf7 {[%clk 0:00:17]} 38. e6 {[%clk 0:00:21]}  Qxd6 {[%clk 0:00:16]} 39. Nxd6 {[%clk 0:00:22]}  Re7 {[%clk 0:00:17]} 40. a4 {[%clk 0:00:19]}  b6 {[%clk 0:00:16]} 41. Ne4 {[%clk 0:00:15]}  Kh6 {[%clk 0:00:15]} 42. a5 {[%clk 0:00:13]}  Rxe6 {[%clk 0:00:14]} 43. Nc3 {[%clk 0:00:12]}  bxa5 {[%clk 0:00:14]} 44. Kf2 {[%clk 0:00:11]}  Rc6 {[%clk 0:00:14]} 45. Nd5 {[%clk 0:00:10]}  Rc5 {[%clk 0:00:12]} 46. Ne3 {[%clk 0:00:07]}  Rb5 {[%clk 0:00:12]} 47. Nc4 {[%clk 0:00:04]}  Rxb3 {[%clk 0:00:12]} 48. Nxa5 {[%clk 0:00:05]}  Rb5 {[%clk 0:00:12]} 49. Nc4 {[%clk 0:00:04]}  a5 {[%clk 0:00:12]} 50. h4 {[%clk 0:00:04]}  a4 {[%clk 0:00:13]} 51. g4 {[%clk 0:00:04]}  Rb4 {[%clk 0:00:13]} 52. Nd6 {[%clk 0:00:04]}  Rxg4 {[%clk 0:00:12]} 53. Nf7+ {[%clk 0:00:02]}  Kh5 {[%clk 0:00:12]} 0-1


[Site "https://www.chess.com"]

[Event "Titled Tuesday Blitz January 31 Early 2023"]
[White "Gjestemoen-VonHirsch, Andre"]
[Black "Sukandar, Irine Kharisma"]
[WhiteFideId "1539531"]
[BlackFideId "7101937"]
[WhiteElo "2314"]
[BlackElo "2390"]
[Result "1-0"]
[Round "10"]
[TimeControl "180+2"]
[Date "2023.01.31"]
[WhiteClock "0:01:10"]
[BlackClock "0:00:01"]

1. d4 {[%clk 0:03:00]}  Nf6 {[%clk 0:02:51]} 2. Bf4 {[%clk 0:02:59]}  d5 {[%clk 0:02:47]} 3. e3 {[%clk 0:02:58]}  c5 {[%clk 0:02:47]} 4. Nd2 {[%clk 0:02:52]}  Nc6 {[%clk 0:02:46]} 5. Ngf3 {[%clk 0:02:52]}  e6 {[%clk 0:02:40]} 6. c3 {[%clk 0:02:51]}  Bd6 {[%clk 0:02:32]} 7. Bg3 {[%clk 0:02:51]}  O-O {[%clk 0:02:27]} 8. Bd3 {[%clk 0:02:50]}  Qe7 {[%clk 0:02:27]} 9. Ne5 {[%clk 0:02:46]}  cxd4 {[%clk 0:02:00]} 10. exd4 {[%clk 0:02:39]}  Nd7 {[%clk 0:01:51]} 11. Ndf3 {[%clk 0:02:23]}  f6 {[%clk 0:01:46]} 12. Nxd7 {[%clk 0:02:10]}  Bxd7 {[%clk 0:01:46]} 13. Qc2 {[%clk 0:02:10]}  f5 {[%clk 0:01:42]} 14. Bxd6 {[%clk 0:02:04]}  Qxd6 {[%clk 0:01:41]} 15. O-O {[%clk 0:02:05]}  Rac8 {[%clk 0:01:35]} 16. Qe2 {[%clk 0:01:57]}  Rce8 {[%clk 0:01:11]} 17. Rfe1 {[%clk 0:01:54]}  Re7 {[%clk 0:01:05]} 18. Bb5 {[%clk 0:01:49]}  Nb8 {[%clk 0:00:42]} 19. a4 {[%clk 0:01:46]}  a6 {[%clk 0:00:42]} 20. Bd3 {[%clk 0:01:38]}  Be8 {[%clk 0:00:40]} 21. Ne5 {[%clk 0:01:33]}  Nd7 {[%clk 0:00:39]} 22. a5 {[%clk 0:01:29]}  Nxe5 {[%clk 0:00:38]} 23. Qxe5 {[%clk 0:01:27]}  Qxe5 {[%clk 0:00:38]} 24. Rxe5 {[%clk 0:01:28]}  Bc6 {[%clk 0:00:32]} 25. Rae1 {[%clk 0:01:25]}  Kf7 {[%clk 0:00:18]} 26. Bxf5 {[%clk 0:01:21]}  Rfe8 {[%clk 0:00:15]} 27. Bxh7 {[%clk 0:01:14]}  g6 {[%clk 0:00:15]} 28. Rg5 {[%clk 0:01:13]}  Kf6 {[%clk 0:00:01]} 29. Rxg6+ {[%clk 0:01:10]} 1-0


[Site "https://www.chess.com"]

[Event "Titled Tuesday Blitz January 31 Early 2023"]
[White "Lorenzo De La Riva, Lazaro"]
[Black "Oro, Faustino"]
[WhiteFideId "2268809"]
[BlackFideId "20000197"]
[WhiteElo "2404"]
[BlackElo "2269"]
[Result "0-1"]
[Round "10"]
[TimeControl "180+2"]
[Date "2023.01.31"]
[WhiteClock "0:00:13"]
[BlackClock "0:00:15"]

1. b3 {[%clk 0:03:00]}  b6 {[%clk 0:02:54]} 2. Bb2 {[%clk 0:03:01]}  Bb7 {[%clk 0:02:55]} 3. c4 {[%clk 0:03:00]}  e6 {[%clk 0:02:53]} 4. Nf3 {[%clk 0:02:58]}  Nf6 {[%clk 0:02:53]} 5. g3 {[%clk 0:02:59]}  Be7 {[%clk 0:02:53]} 6. Bg2 {[%clk 0:02:59]}  O-O {[%clk 0:02:54]} 7. O-O {[%clk 0:02:58]}  d5 {[%clk 0:02:54]} 8. d3 {[%clk 0:02:58]}  c5 {[%clk 0:02:53]} 9. e3 {[%clk 0:02:56]}  Nc6 {[%clk 0:02:52]} 10. Re1 {[%clk 0:02:54]}  Qc7 {[%clk 0:02:50]} 11. Nc3 {[%clk 0:02:52]}  Rad8 {[%clk 0:02:49]} 12. Qe2 {[%clk 0:02:50]}  a6 {[%clk 0:02:47]} 13. a3 {[%clk 0:02:46]}  Rd7 {[%clk 0:02:38]} 14. cxd5 {[%clk 0:02:44]}  exd5 {[%clk 0:02:37]} 15. Rac1 {[%clk 0:02:43]}  Rfd8 {[%clk 0:02:37]} 16. d4 {[%clk 0:02:42]}  Qb8 {[%clk 0:02:34]} 17. dxc5 {[%clk 0:02:40]}  bxc5 {[%clk 0:02:32]} 18. Na4 {[%clk 0:02:39]}  Qa7 {[%clk 0:02:22]} 19. Ne5 {[%clk 0:02:14]}  Nxe5 {[%clk 0:02:13]} 20. Bxe5 {[%clk 0:02:15]}  Bc6 {[%clk 0:02:09]} 21. Bxf6 {[%clk 0:02:09]}  Bxf6 {[%clk 0:02:05]} 22. Nxc5 {[%clk 0:02:09]}  Re7 {[%clk 0:02:05]} 23. Qg4 {[%clk 0:02:06]}  Bb2 {[%clk 0:01:57]} 24. Rc2 {[%clk 0:01:58]}  Bxa3 {[%clk 0:01:57]} 25. Nd3 {[%clk 0:01:59]}  Bb5 {[%clk 0:01:56]} 26. Nf4 {[%clk 0:01:58]}  d4 {[%clk 0:01:56]} 27. Nh5 {[%clk 0:01:57]}  g6 {[%clk 0:01:52]} 28. Nf6+ {[%clk 0:01:46]}  Kg7 {[%clk 0:01:52]} 29. Qh4 {[%clk 0:01:46]}  dxe3 {[%clk 0:01:37]} 30. fxe3 {[%clk 0:01:40]}  Rxe3 {[%clk 0:01:33]} 31. Qxh7+ {[%clk 0:01:40]}  Kxf6 {[%clk 0:01:32]} 32. Rf2+ {[%clk 0:01:38]}  Rf3 {[%clk 0:01:10]} 33. Bxf3 {[%clk 0:01:33]}  Bc5 {[%clk 0:01:10]} 34. Qh4+ {[%clk 0:00:56]}  Kg7 {[%clk 0:01:09]} 35. g4 {[%clk 0:00:57]}  Rd2 {[%clk 0:01:05]} 36. Be2 {[%clk 0:00:54]}  Rxe2 {[%clk 0:00:56]} 37. Rxe2 {[%clk 0:00:49]}  Bxe2 {[%clk 0:00:55]} 38. Qf6+ {[%clk 0:00:49]}  Kg8 {[%clk 0:00:32]} 39. Qd8+ {[%clk 0:00:48]}  Bf8 {[%clk 0:00:31]} 40. Qd5 {[%clk 0:00:45]}  Bxg4 {[%clk 0:00:29]} 41. Kg2 {[%clk 0:00:41]}  Be6 {[%clk 0:00:28]} 42. Qf3 {[%clk 0:00:41]}  Qb8 {[%clk 0:00:24]} 43. Rb2 {[%clk 0:00:29]}  Qe5 {[%clk 0:00:23]} 44. Re2 {[%clk 0:00:27]}  Qg5+ {[%clk 0:00:23]} 45. Kf1 {[%clk 0:00:20]}  Bd5 {[%clk 0:00:20]} 46. Qe3 {[%clk 0:00:16]}  Qf5+ {[%clk 0:00:18]} 47. Qf2 {[%clk 0:00:15]}  Qh3+ {[%clk 0:00:16]} 48. Ke1 {[%clk 0:00:15]}  Bb4+ {[%clk 0:00:16]} 49. Kd1 {[%clk 0:00:15]}  Qxb3+ {[%clk 0:00:16]} 50. Rc2 {[%clk 0:00:13]}  Be4 {[%clk 0:00:15]} 0-1


[Site "https://www.chess.com"]

[Event "Titled Tuesday Blitz January 31 Early 2023"]
[White "Kopczynski, Michal"]
[Black "Turzo, Attila"]
[WhiteFideId "1124200"]
[BlackFideId "704954"]
[WhiteElo "2225"]
[BlackElo "2279"]
[Result "1-0"]
[Round "10"]
[TimeControl "180+2"]
[Date "2023.01.31"]
[WhiteClock "0:02:53"]
[BlackClock "0:02:01"]

1. e4 {[%clk 0:03:00]}  c5 {[%clk 0:02:59]} 2. d4 {[%clk 0:03:01]}  cxd4 {[%clk 0:02:58]} 3. c3 {[%clk 0:03:01]}  dxc3 {[%clk 0:02:58]} 4. Nxc3 {[%clk 0:03:02]}  e6 {[%clk 0:02:58]} 5. f4 {[%clk 0:03:03]}  Nc6 {[%clk 0:02:57]} 6. Nf3 {[%clk 0:03:04]}  Bb4 {[%clk 0:02:56]} 7. Bd3 {[%clk 0:03:04]}  Nge7 {[%clk 0:02:56]} 8. O-O {[%clk 0:03:04]}  O-O {[%clk 0:02:56]} 9. e5 {[%clk 0:03:04]}  d6 {[%clk 0:02:52]} 10. Bxh7+ {[%clk 0:03:04]}  Kxh7 {[%clk 0:02:24]} 11. Ng5+ {[%clk 0:03:04]}  Kg6 {[%clk 0:02:23]} 12. Qg4 {[%clk 0:03:04]}  Qb6+ {[%clk 0:02:12]} 13. Kh1 {[%clk 0:03:03]}  f5 {[%clk 0:02:01]} 14. Qh4 {[%clk 0:02:53]} 1-0


[Site "https://www.chess.com"]

[Event "Titled Tuesday Blitz January 31 Early 2023"]
[White "Delorme, Axel"]
[Black "Sielecki, Christof"]
[WhiteFideId "632023"]
[BlackFideId "4620437"]
[WhiteElo "2483"]
[BlackElo "2419"]
[Result "0-1"]
[Round "10"]
[TimeControl "180+2"]
[Date "2023.01.31"]
[WhiteClock "0:00:40"]
[BlackClock "0:00:13"]

1. e4 {[%clk 0:03:00]}  c5 {[%clk 0:02:59]} 2. Nf3 {[%clk 0:03:01]}  a6 {[%clk 0:03:00]} 3. c3 {[%clk 0:03:00]}  d5 {[%clk 0:02:59]} 4. exd5 {[%clk 0:03:00]}  Qxd5 {[%clk 0:03:00]} 5. d4 {[%clk 0:03:01]}  e6 {[%clk 0:03:01]} 6. Bd3 {[%clk 0:03:00]}  Nf6 {[%clk 0:03:00]} 7. O-O {[%clk 0:03:01]}  Be7 {[%clk 0:03:01]} 8. Be3 {[%clk 0:03:01]}  Nbd7 {[%clk 0:02:56]} 9. c4 {[%clk 0:02:58]}  Qd6 {[%clk 0:02:48]} 10. Nc3 {[%clk 0:02:58]}  O-O {[%clk 0:02:43]} 11. Ne4 {[%clk 0:02:55]}  Nxe4 {[%clk 0:02:41]} 12. Bxe4 {[%clk 0:02:56]}  Nf6 {[%clk 0:02:34]} 13. Bc2 {[%clk 0:02:55]}  cxd4 {[%clk 0:02:19]} 14. Qxd4 {[%clk 0:02:56]}  Qxd4 {[%clk 0:02:17]} 15. Bxd4 {[%clk 0:02:55]}  Bd7 {[%clk 0:02:11]} 16. Rfd1 {[%clk 0:02:54]}  Bc6 {[%clk 0:02:04]} 17. Ne5 {[%clk 0:02:54]}  Be4 {[%clk 0:01:57]} 18. Bxe4 {[%clk 0:02:49]}  Nxe4 {[%clk 0:01:56]} 19. f3 {[%clk 0:02:50]}  Nf6 {[%clk 0:01:51]} 20. Bb6 {[%clk 0:02:46]}  Rfc8 {[%clk 0:01:44]} 21. b3 {[%clk 0:02:46]}  Bc5+ {[%clk 0:01:29]} 22. Bxc5 {[%clk 0:02:46]}  Rxc5 {[%clk 0:01:30]} 23. Nd7 {[%clk 0:02:43]}  Nxd7 {[%clk 0:01:25]} 24. Rxd7 {[%clk 0:02:44]}  b5 {[%clk 0:01:23]} 25. cxb5 {[%clk 0:02:36]}  axb5 {[%clk 0:01:22]} 26. Rb7 {[%clk 0:02:36]}  g6 {[%clk 0:01:14]} 27. h4 {[%clk 0:02:31]}  Rd8 {[%clk 0:01:08]} 28. a4 {[%clk 0:02:08]}  bxa4 {[%clk 0:01:06]} 29. bxa4 {[%clk 0:02:09]}  Rc2 {[%clk 0:01:03]} 30. Rb4 {[%clk 0:02:00]}  Rdd2 {[%clk 0:01:01]} 31. Rg4 {[%clk 0:02:00]}  h5 {[%clk 0:01:01]} 32. Rg5 {[%clk 0:01:59]}  Kg7 {[%clk 0:00:54]} 33. a5 {[%clk 0:01:58]}  f6 {[%clk 0:00:49]} 34. Rb5 {[%clk 0:01:48]}  Rxg2+ {[%clk 0:00:48]} 35. Kh1 {[%clk 0:01:48]}  Rh2+ {[%clk 0:00:43]} 36. Kg1 {[%clk 0:01:49]}  Rcg2+ {[%clk 0:00:29]} 37. Kf1 {[%clk 0:01:48]}  Ra2 {[%clk 0:00:27]} 38. Rxa2 {[%clk 0:01:37]}  Rxa2 {[%clk 0:00:26]} 39. Rb7+ {[%clk 0:01:21]}  Kh6 {[%clk 0:00:25]} 40. Ra7 {[%clk 0:01:19]}  g5 {[%clk 0:00:22]} 41. hxg5+ {[%clk 0:01:18]}  Kxg5 {[%clk 0:00:22]} 42. a6 {[%clk 0:01:19]}  e5 {[%clk 0:00:22]} 43. Ra8 {[%clk 0:01:12]}  Kf4 {[%clk 0:00:21]} 44. a7 {[%clk 0:01:12]}  f5 {[%clk 0:00:20]} 45. Kg1 {[%clk 0:01:10]}  h4 {[%clk 0:00:20]} 46. Kh1 {[%clk 0:00:49]}  h3 {[%clk 0:00:20]} 47. Rh8 {[%clk 0:00:45]}  Rxa7 {[%clk 0:00:18]} 48. Rxh3 {[%clk 0:00:46]}  Ra2 {[%clk 0:00:19]} 49. Kg1 {[%clk 0:00:46]}  Ke3 {[%clk 0:00:17]} 50. Kf1 {[%clk 0:00:44]}  Rf2+ {[%clk 0:00:15]} 51. Kg1 {[%clk 0:00:42]}  Rxf3 {[%clk 0:00:16]} 52. Rh8 {[%clk 0:00:42]}  e4 {[%clk 0:00:16]} 53. Ra8 {[%clk 0:00:41]}  Rg3+ {[%clk 0:00:15]} 54. Kh2 {[%clk 0:00:40]}  Rg7 {[%clk 0:00:15]} 55. Rf8 {[%clk 0:00:40]}  f4 {[%clk 0:00:15]} 56. Ra8 {[%clk 0:00:41]}  f3 {[%clk 0:00:15]} 57. Ra3+ {[%clk 0:00:41]}  Kf4 {[%clk 0:00:15]} 58. Ra8 {[%clk 0:00:41]}  f2 {[%clk 0:00:15]} 59. Ra7 {[%clk 0:00:40]}  Rxa7 {[%clk 0:00:13]} 0-1


[Site "https://www.chess.com"]

[Event "Titled Tuesday Blitz January 31 Early 2023"]
[White "Llanos, Guillermo"]
[Black "Souleidis, Georgios"]
[WhiteFideId "100358"]
[BlackFideId "4206827"]
[WhiteElo "2290"]
[BlackElo "2419"]
[Result "0-1"]
[Round "10"]
[TimeControl "180+2"]
[Date "2023.01.31"]
[WhiteClock "0:00:09"]
[BlackClock "0:00:12"]

1. Nf3 {[%clk 0:02:50]}  Nf6 {[%clk 0:02:59]} 2. g3 {[%clk 0:02:41]}  g6 {[%clk 0:02:59]} 3. Bg2 {[%clk 0:02:40]}  Bg7 {[%clk 0:03:00]} 4. O-O {[%clk 0:02:39]}  O-O {[%clk 0:03:01]} 5. d3 {[%clk 0:02:39]}  d5 {[%clk 0:03:01]} 6. Nbd2 {[%clk 0:02:38]}  c5 {[%clk 0:02:59]} 7. e4 {[%clk 0:02:38]}  Nc6 {[%clk 0:02:58]} 8. Re1 {[%clk 0:02:36]}  dxe4 {[%clk 0:02:55]} 9. dxe4 {[%clk 0:02:36]}  e5 {[%clk 0:02:55]} 10. c3 {[%clk 0:02:35]}  Qc7 {[%clk 0:02:55]} 11. Qe2 {[%clk 0:02:34]}  b6 {[%clk 0:02:46]} 12. Nc4 {[%clk 0:02:32]}  Ba6 {[%clk 0:02:44]} 13. Nfd2 {[%clk 0:02:31]}  Rad8 {[%clk 0:02:31]} 14. Bf1 {[%clk 0:02:27]}  h5 {[%clk 0:02:27]} 15. Qf3 {[%clk 0:02:05]}  Bc8 {[%clk 0:02:17]} 16. Ne3 {[%clk 0:02:02]}  Ne7 {[%clk 0:02:09]} 17. Bc4 {[%clk 0:01:59]}  Ng4 {[%clk 0:01:44]} 18. Ndf1 {[%clk 0:01:46]}  Qc6 {[%clk 0:01:34]} 19. Nd5 {[%clk 0:01:41]}  Nxd5 {[%clk 0:01:31]} 20. Bxd5 {[%clk 0:01:39]}  Qf6 {[%clk 0:01:28]} 21. Qe2 {[%clk 0:01:25]}  Qe7 {[%clk 0:01:22]} 22. Kg2 {[%clk 0:01:16]}  Qd7 {[%clk 0:01:17]} 23. Bg5 {[%clk 0:01:02]}  Nf6 {[%clk 0:01:08]} 24. Bxf6 {[%clk 0:00:55]}  Qh3+ {[%clk 0:01:07]} 25. Kg1 {[%clk 0:00:52]}  Bxf6 {[%clk 0:01:08]} 26. Qf3 {[%clk 0:00:49]}  Kg7 {[%clk 0:01:04]} 27. Qg2 {[%clk 0:00:43]}  Qd7 {[%clk 0:00:59]} 28. Rad1 {[%clk 0:00:42]}  Qe7 {[%clk 0:00:59]} 29. Ne3 {[%clk 0:00:40]}  Bg5 {[%clk 0:00:59]} 30. Qf3 {[%clk 0:00:36]}  Bxe3 {[%clk 0:00:52]} 31. Qxe3 {[%clk 0:00:36]}  h4 {[%clk 0:00:50]} 32. f4 {[%clk 0:00:32]}  hxg3 {[%clk 0:00:47]} 33. Qxg3 {[%clk 0:00:28]}  exf4 {[%clk 0:00:41]} 34. Qxf4 {[%clk 0:00:28]}  Rh8 {[%clk 0:00:42]} 35. Rf1 {[%clk 0:00:26]}  Rdf8 {[%clk 0:00:42]} 36. e5 {[%clk 0:00:25]}  Bf5 {[%clk 0:00:37]} 37. Rde1 {[%clk 0:00:22]}  Rh4 {[%clk 0:00:36]} 38. Qf2 {[%clk 0:00:20]}  Rg4+ {[%clk 0:00:35]} 39. Kh1 {[%clk 0:00:20]}  Rh8 {[%clk 0:00:33]} 40. e6 {[%clk 0:00:20]}  fxe6 {[%clk 0:00:28]} 41. Bxe6 {[%clk 0:00:19]}  Bxe6 {[%clk 0:00:26]} 42. Qf3 {[%clk 0:00:15]}  Rgh4 {[%clk 0:00:24]} 43. Qg3 {[%clk 0:00:12]}  Rxh2+ {[%clk 0:00:14]} 44. Qxh2 {[%clk 0:00:12]}  Rxh2+ {[%clk 0:00:13]} 45. Kxh2 {[%clk 0:00:12]}  Qh4+ {[%clk 0:00:13]} 46. Kg2 {[%clk 0:00:12]}  Bh3+ {[%clk 0:00:13]} 47. Kf3 {[%clk 0:00:09]}  Bxf1 {[%clk 0:00:13]} 48. Rxf1 {[%clk 0:00:09]}  Qc4 {[%clk 0:00:12]} 0-1


[Site "https://www.chess.com"]

[Event "Titled Tuesday Blitz January 31 Early 2023"]
[White "Rodriguez, Santiago"]
[Black "Reprintsev, Alexander"]
[WhiteFideId "3000591"]
[BlackFideId "14100541"]
[WhiteElo "2252"]
[BlackElo "2253"]
[Result "1-0"]
[Round "10"]
[TimeControl "180+2"]
[Date "2023.01.31"]
[WhiteClock "0:00:06"]
[BlackClock "0:01:02"]

1. d4 {[%clk 0:03:00]}  d5 {[%clk 0:02:58]} 2. Bf4 {[%clk 0:02:59]}  f6 {[%clk 0:02:57]} 3. c4 {[%clk 0:02:55]}  c6 {[%clk 0:02:57]} 4. Nc3 {[%clk 0:02:54]}  e6 {[%clk 0:02:55]} 5. e4 {[%clk 0:02:45]}  Bd6 {[%clk 0:02:54]} 6. e5 {[%clk 0:02:39]}  Bb4 {[%clk 0:02:52]} 7. Bd3 {[%clk 0:02:37]}  dxc4 {[%clk 0:02:50]} 8. Qh5+ {[%clk 0:02:33]}  Kf8 {[%clk 0:02:48]} 9. Bc2 {[%clk 0:01:57]}  Qxd4 {[%clk 0:02:45]} 10. Ne2 {[%clk 0:01:57]}  Bxc3+ {[%clk 0:02:30]} 11. bxc3 {[%clk 0:01:57]}  Qc5 {[%clk 0:02:30]} 12. Rd1 {[%clk 0:01:50]}  Nd7 {[%clk 0:02:30]} 13. O-O {[%clk 0:01:32]}  Ne7 {[%clk 0:02:27]} 14. Rd2 {[%clk 0:01:12]}  Nd5 {[%clk 0:02:25]} 15. Bg3 {[%clk 0:00:53]}  Qe7 {[%clk 0:02:23]} 16. exf6 {[%clk 0:00:41]}  N7xf6 {[%clk 0:02:20]} 17. Qe5 {[%clk 0:00:35]}  Kf7 {[%clk 0:02:15]} 18. Re1 {[%clk 0:00:34]}  Rd8 {[%clk 0:02:15]} 19. Nd4 {[%clk 0:00:30]}  Kg8 {[%clk 0:02:11]} 20. Bh4 {[%clk 0:00:29]}  Qf7 {[%clk 0:02:05]} 21. Nf3 {[%clk 0:00:27]}  Bd7 {[%clk 0:02:03]} 22. Ng5 {[%clk 0:00:21]}  Qf8 {[%clk 0:01:52]} 23. Rd4 {[%clk 0:00:13]}  h6 {[%clk 0:01:45]} 24. Nxe6 {[%clk 0:00:12]}  Bxe6 {[%clk 0:01:44]} 25. Qxe6+ {[%clk 0:00:13]}  Qf7 {[%clk 0:01:43]} 26. Bh7+ {[%clk 0:00:11]}  Kf8 {[%clk 0:01:42]} 27. Qxf7+ {[%clk 0:00:07]}  Kxf7 {[%clk 0:01:42]} 28. Bf5 {[%clk 0:00:07]}  b5 {[%clk 0:01:40]} 29. h3 {[%clk 0:00:06]}  Re8 {[%clk 0:01:39]} 30. Rb1 {[%clk 0:00:05]}  Re5 {[%clk 0:01:37]} 31. a4 {[%clk 0:00:05]}  Rxf5 {[%clk 0:01:37]} 32. axb5 {[%clk 0:00:06]}  cxb5 {[%clk 0:01:36]} 33. Rxb5 {[%clk 0:00:07]}  Ne7 {[%clk 0:01:33]} 34. Rb7 {[%clk 0:00:06]}  Re5 {[%clk 0:01:22]} 35. Rxc4 {[%clk 0:00:06]}  a5 {[%clk 0:01:21]} 36. Rcc7 {[%clk 0:00:07]}  a4 {[%clk 0:01:19]} 37. Bg3 {[%clk 0:00:07]}  Re1+ {[%clk 0:01:19]} 38. Kh2 {[%clk 0:00:08]}  Nd5 {[%clk 0:01:19]} 39. Rd7 {[%clk 0:00:06]}  Kf8 {[%clk 0:01:17]} 40. c4 {[%clk 0:00:06]}  Nf6 {[%clk 0:01:14]} 41. Rxe7 {[%clk 0:00:04]}  Rxe7 {[%clk 0:01:13]} 42. Bd6 {[%clk 0:00:05]}  Ng8 {[%clk 0:01:12]} 43. c5 {[%clk 0:00:04]}  Ke8 {[%clk 0:01:12]} 44. Bxe7 {[%clk 0:00:03]}  Nxe7 {[%clk 0:01:12]} 45. c6 {[%clk 0:00:04]}  Nxc6 {[%clk 0:01:11]} 46. Rxg7 {[%clk 0:00:03]}  a3 {[%clk 0:01:11]} 47. Rg8+ {[%clk 0:00:03]}  Kd7 {[%clk 0:01:10]} 48. Rxa8 {[%clk 0:00:04]}  Ne5 {[%clk 0:01:07]} 49. Rxa3 {[%clk 0:00:04]}  Nc4 {[%clk 0:01:08]} 50. Rc3 {[%clk 0:00:04]}  Nb6 {[%clk 0:01:07]} 51. Rd3+ {[%clk 0:00:04]}  Ke6 {[%clk 0:01:07]} 52. g4 {[%clk 0:00:05]}  Ke5 {[%clk 0:01:07]} 53. Kg3 {[%clk 0:00:05]}  Nc4 {[%clk 0:01:07]} 54. f4+ {[%clk 0:00:04]}  Ke4 {[%clk 0:01:07]} 55. Rd8 {[%clk 0:00:05]}  Nb6 {[%clk 0:01:03]} 56. Re8+ {[%clk 0:00:05]}  Kd5 {[%clk 0:01:03]} 57. h4 {[%clk 0:00:06]}  Nd7 {[%clk 0:01:02]} 58. Rd8 {[%clk 0:00:06]} 1-0


[Site "https://www.chess.com"]